bitfinex/quotes_BTCUSD_20250127
["timestamp","ask_amount","ask_price","bid_price","bid_amount"]
[1738014504913,0.50269004,101450.0,101440.0,0.17051519]
[1738014507007,0.50269004,101450.0,101440.0,0.17150091]
[1738014507779,0.50269004,101450.0,101440.0,0.34450091]
[1738014507980,0.50269004,101450.0,101440.0,0.69183109]
[1738014508387,0.50269004,101450.0,101440.0,0.73723109]
[1738014509779,0.50269004,101450.0,101440.0,0.73623109]
[1738014510489,0.50269004,101450.0,101440.0,0.73723109]
[1738014510727,0.50269004,101450.0,101440.0,0.42631519]
[1738014511312,0.50269004,101450.0,101440.0,0.32051519]
[1738014511514,0.50269004,101450.0,101440.0,0.31851519]
[1738014511713,0.50269004,101450.0,101440.0,0.31751519]
[1738014511917,0.50269004,101450.0,101440.0,0.32251519]
[1738014512117,0.50269004,101450.0,101440.0,0.32451519]
[1738014514780,0.74789333,101450.0,101440.0,0.15521838]
[1738014514955,0.60003733,101450.0,101440.0,0.15521838]
[1738014515699,0.74789333,101450.0,101440.0,0.15021838]
[1738014515906,0.74789333,101450.0,101440.0,0.14821838]
[1738014516207,0.74789333,101450.0,101440.0,0.14921838]
[1738014516345,0.74789333,101450.0,101440.0,0.15021838]
[1738014516764,0.74789333,101450.0,101440.0,0.14921838]
[1738014517225,0.74789333,101450.0,101440.0,0.14821838]
[1738014517430,0.74989333,101450.0,101440.0,0.14821838]
[1738014517604,0.74989333,101450.0,101440.0,0.00034838]
[1738014518263,0.75089333,101450.0,101440.0,0.14821838]
[1738014518941,0.60303733,101450.0,101440.0,0.14821838]
[1738014519151,0.50569004,101450.0,101440.0,0.14821838]
[1738014519794,0.80147648,101450.0,101440.0,0.00034838]
[1738014519931,0.74989333,101450.0,101440.0,0.00034838]
[1738014520133,0.84989333,101450.0,101440.0,0.00034838]
[1738014520390,0.84789333,101450.0,101440.0,0.00034838]
[1738014520706,0.84989333,101450.0,101440.0,0.00034838]
[1738014520908,0.84789333,101450.0,101440.0,0.00034838]
[1738014521321,0.85089333,101450.0,101440.0,0.00034838]
[1738014521750,0.84989333,101450.0,101440.0,0.00034838]
[1738014522159,0.85089333,101450.0,101440.0,0.00034838]
[1738014522360,0.75089333,101450.0,101440.0,0.00034838]
[1738014522768,0.24820329,101450.0,101440.0,0.00034838]
[1738014525394,0.25823635,101450.0,101440.0,0.00034838]
[1738014527775,0.14787,101440.0,101430.0,0.14862057]
[1738014528142,0.74790733,101440.0,101430.0,0.1319539]
[1738014528894,0.74790733,101440.0,101430.0,0.1329539]
[1738014529994,0.74790733,101440.0,101430.0,0.1339539]
[1738014530560,0.60003733,101440.0,101430.0,0.1339539]
[1738014530964,0.50269004,101440.0,101430.0,0.24611918]
[1738014531339,0.50269004,101440.0,101430.0,0.54591918]
[1738014531510,0.50269004,101440.0,101430.0,0.4337539]
[1738014531735,0.50269004,101440.0,101430.0,0.1339539]
[1738014531949,0.74790733,101440.0,101430.0,0.1339539]
[1738014532149,0.74790733,101440.0,101430.0,0.002]
[1738014532773,0.60003733,101440.0,101430.0,0.149885]
[1738014532993,0.50269004,101440.0,101430.0,0.149885]
[1738014535760,0.83267623,101440.0,101430.0,0.002]
[1738014536146,0.74790733,101440.0,101430.0,0.002]
[1738014536646,0.74790733,101440.0,101430.0,0.001]
[1738014536845,0.147885,101430.0,101420.0,0.34539336]
[1738014537060,0.24523229,101430.0,101420.0,0.19749536]
[1738014538089,0.24623229,101430.0,101420.0,0.19749536]
[1738014538300,0.24823229,101430.0,101420.0,0.19749536]
[1738014540130,0.24823229,101430.0,101420.0,0.00029736]
[1738014540332,0.24823229,101430.0,101420.0,0.14819636]
[1738014541120,0.10034729,101430.0,101420.0,0.14819636]
[1738014541321,0.24823229,101430.0,101420.0,0.14819636]
[1738014542737,0.24823229,101430.0,101420.0,0.15506716]
[1738014542933,0.10034729,101430.0,101420.0,0.15506716]
[1738014543142,0.003,101430.0,101420.0,0.15506716]
[1738014543340,0.003,101430.0,101420.0,0.62632058]
[1738014543547,0.003,101430.0,101420.0,0.62533476]
[1738014543960,0.50318183,101440.0,101420.0,0.62533476]
[1738014544164,0.50318183,101440.0,101430.0,0.147885]
[1738014544783,0.00049179,101440.0,101430.0,0.49013842]
[1738014544961,0.00049179,101440.0,101430.0,0.4891526]
[1738014545162,0.50418183,101440.0,101430.0,0.320885]
[1738014545367,0.50418183,101440.0,101430.0,0.66769989]
[1738014545571,0.00149179,101440.0,101430.0,0.71549989]
[1738014545780,0.00149179,101440.0,101430.0,0.74625832]
[1738014546344,0.00149179,101440.0,101430.0,0.75308745]
[1738014546940,0.002,101440.0,101430.0,0.75308745]
[1738014547358,0.002,101440.0,101430.0,0.75508745]
[1738014547938,0.0001415,101450.0,101440.0,0.40207]
[1738014548142,0.0001415,101450.0,101440.0,0.69844332]
[1738014548350,0.0001415,101460.0,101450.0,0.3391236]
[1738014548586,0.00028895,101460.0,101450.0,0.34586685]
[1738014548854,0.00028895,101460.0,101450.0,0.44321414]
[1738014549059,0.0001416,101470.0,101450.0,0.54921414]
[1738014549200,0.0001416,101470.0,101460.0,0.56444128]
[1738014549410,0.0001416,101470.0,101460.0,0.297841]
[1738014549611,0.24531489,101470.0,101460.0,0.15453196]
[1738014549989,0.09748889,101470.0,101460.0,0.15453196]
[1738014550755,0.09748889,101470.0,101460.0,0.15553196]
[1738014551572,0.24531489,101470.0,101460.0,0.15553196]
[1738014552048,0.09748889,101470.0,101460.0,0.15653196]
[1738014552566,0.0001416,101470.0,101460.0,0.15653196]
[1738014552811,0.0001416,101470.0,101460.0,0.34878508]
[1738014553011,0.0001416,101470.0,101460.0,0.34779956]
[1738014553337,0.0001416,101470.0,101460.0,0.49779956]
[1738014555340,0.0001416,101470.0,101460.0,0.54749956]
[1738014556251,0.0001416,101470.0,101460.0,0.64484685]
[1738014556637,0.0001416,101470.0,101460.0,0.71055645]
[1738014557073,0.0001416,101470.0,101460.0,0.78695645]
[1738014557282,6e-07,101470.0,101460.0,0.81695645]
[1738014557494,6e-07,101470.0,101460.0,0.84758511]
[1738014557919,0.0001414,101500.0,101490.0,0.50922924]
[1738014558140,0.0002891,101500.0,101490.0,0.71860877]
[1738014558343,0.0002891,101500.0,101490.0,0.72517839]
[1738014558696,0.0002891,101500.0,101490.0,0.66907549]
[1738014559438,0.50297914,101500.0,101490.0,0.66907549]
[1738014560024,0.50297914,101500.0,101490.0,0.67407549]
[1738014560426,0.50297914,101500.0,101490.0,0.67307549]
[1738014560753,0.50297914,101500.0,101490.0,0.67507549]
[1738014562450,0.50297914,101500.0,101490.0,0.5777282]
[1738014562652,0.50297914,101500.0,101490.0,0.5013282]
[1738014562857,0.50297914,101500.0,101490.0,0.33336662]
[1738014563215,0.50297914,101500.0,101490.0,0.35297739]
[1738014563622,0.50297914,101500.0,101490.0,0.52093897]
[1738014563825,0.50297914,101500.0,101490.0,0.61828626]
[1738014566504,0.50297914,101500.0,101490.0,0.62799424]
[1738014566720,0.50297914,101500.0,101490.0,0.33968537]
[1738014567372,0.50297914,101500.0,101490.0,0.32997739]
[1738014568960,0.50297914,101500.0,101490.0,0.17997739]
[1738014569134,0.74810943,101500.0,101490.0,0.01256962]
[1738014569360,1.02565672,101500.0,101490.0,0.01256962]
[1738014569903,0.68052643,101500.0,101490.0,0.15436662]
[1738014570123,0.68052643,101500.0,101490.0,0.15536662]
[1738014570329,0.82830943,101500.0,101490.0,0.15645263]
[1738014570483,0.50297914,101500.0,101490.0,0.15645263]
[1738014571033,0.60032643,101500.0,101490.0,0.15645263]
[1738014572354,0.74810943,101500.0,101490.0,0.15645263]
[1738014573092,0.74810943,101500.0,101490.0,0.00865563]
[1738014573292,0.74810943,101500.0,101490.0,0.15645263]
[1738014573959,0.60032643,101500.0,101490.0,0.15645263]
[1738014575287,0.50297914,101500.0,101490.0,0.32441421]
[1738014575494,0.50297914,101500.0,101490.0,0.49741421]
[1738014578421,0.50297914,101500.0,101490.0,0.15645263]
[1738014578637,0.74810943,101500.0,101490.0,0.00865563]
[1738014578845,0.92850943,101500.0,101490.0,0.00865563]
[1738014580287,0.97710943,101500.0,101490.0,0.00865563]
[1738014580684,1.03710943,101500.0,101490.0,0.00865563]
[1738014580887,1.0889885,101500.0,101490.0,0.00865563]
[1738014581107,1.0889885,101500.0,101490.0,0.00208601]
[1738014581305,1.18633579,101500.0,101490.0,0.00208601]
[1738014581530,1.18633579,101500.0,101460.0,0.00029715]
[1738014581531,0.487026,101470.0,101460.0,0.00029715]
[1738014581890,0.99030333,101470.0,101460.0,0.00698049]
[1738014583289,1.17030333,101470.0,101460.0,0.00698049]
[1738014583491,1.17030333,101470.0,101460.0,0.00029715]
[1738014583694,1.26765062,101470.0,101460.0,0.00029715]
[1738014584320,1.26865062,101470.0,101460.0,0.00698805]
[1738014584454,1.26865062,101470.0,101460.0,0.00029715]
[1738014584666,1.26865062,101470.0,101460.0,0.00698805]
[1738014584865,1.26865062,101470.0,101460.0,0.00029715]
[1738014585086,1.26865062,101470.0,101460.0,0.00700798]
[1738014585320,1.36865062,101470.0,101460.0,0.00029715]
[1738014585526,0.97806333,101470.0,101460.0,0.00029715]
[1738014585730,0.99130333,101470.0,101460.0,0.00700798]
[1738014585925,1.00099381,101470.0,101460.0,0.00700798]
[1738014589103,0.90095381,101470.0,101460.0,0.00700798]
[1738014589303,0.90095381,101470.0,101450.0,0.19714]
[1738014589304,0.147841,101460.0,101450.0,0.19714]
[1738014589481,0.24518829,101460.0,101450.0,0.19714]
[1738014589692,0.44231529,101460.0,101440.0,0.542159]
[1738014589898,0.44231529,101460.0,101440.0,0.73931]
[1738014590098,0.44231529,101460.0,101440.0,0.542159]
[1738014590309,0.44231529,101460.0,101430.0,0.59180615]
[1738014590310,0.24520329,101450.0,101430.0,0.59180615]
[1738014590535,0.24520329,101450.0,101440.0,0.14787]
[1738014590536,0.60003733,101450.0,101440.0,0.14787]
[1738014590909,0.60003733,101450.0,101440.0,0.14887]
[1738014591103,0.60003733,101450.0,101440.0,0.14787]
[1738014591313,0.50269004,101450.0,101440.0,0.14887]
[1738014591913,0.50269004,101450.0,101440.0,0.14987]
[1738014592705,0.50269004,101450.0,101440.0,0.14887]
[1738014592930,0.50269004,101450.0,101440.0,0.14987]
[1738014594081,0.50269004,101450.0,101440.0,0.347021]
[1738014594590,0.50269004,101450.0,101440.0,0.35669981]
[1738014594944,0.50269004,101450.0,101440.0,0.54792704]
[1738014595157,0.50269004,101450.0,101440.0,0.56811543]
[1738014595337,0.50269004,101450.0,101440.0,0.71811543]
[1738014597426,4.921e-05,101460.0,101440.0,0.81575987]
[1738014597632,4.921e-05,101460.0,101450.0,0.42026881]
[1738014597999,4.921e-05,101460.0,101450.0,0.41928323]
[1738014599334,0.00104921,101460.0,101450.0,0.147856]
[1738014599960,4.921e-05,101460.0,101450.0,0.147856]
[1738014600198,4.921e-05,101460.0,101450.0,0.153856]
[1738014600407,0.0973965,101460.0,101450.0,0.153856]
[1738014600607,0.2452375,101460.0,101450.0,0.006]
[1738014600804,0.48808479,101460.0,101450.0,0.006]
[1738014601052,0.2907375,101460.0,101450.0,0.153856]
[1738014601454,0.2452375,101460.0,101450.0,0.004]
[1738014601659,0.2452375,101460.0,101450.0,0.147856]
[1738014602419,0.0973965,101460.0,101450.0,0.147856]
[1738014602617,0.2452375,101460.0,101450.0,0.147856]
[1738014603180,0.0973965,101460.0,101450.0,0.147856]
[1738014603339,0.2462375,101460.0,101450.0,0.147856]
[1738014603946,0.0983965,101460.0,101450.0,0.147856]
[1738014604145,0.2462375,101460.0,101450.0,0.147856]
[1738014604777,0.54071479,101460.0,101440.0,0.54245115]
[1738014604955,0.59000779,101460.0,101440.0,0.54245115]
[1738014605206,0.09734729,101450.0,101440.0,0.00029715]
[1738014605366,0.84789333,101450.0,101440.0,0.00029715]
[1738014605570,0.85940827,101450.0,101440.0,0.00029715]
[1738014606956,0.84789333,101450.0,101440.0,0.00129715]
[1738014607154,0.74789333,101450.0,101440.0,0.00129715]
[1738014607354,0.84789333,101450.0,101440.0,0.00129715]
[1738014610734,0.95419333,101450.0,101440.0,0.00129715]
[1738014610941,1.14969333,101450.0,101440.0,0.00129715]
[1738014611145,1.24704062,101450.0,101440.0,0.00129715]
[1738014612421,1.27594062,101450.0,101440.0,0.00129715]
[1738014612862,1.27794062,101450.0,101440.0,0.00029715]
[1738014615340,1.48760863,101450.0,101440.0,0.00029715]
[1738014615599,1.79763083,101450.0,101440.0,1.5e-07]
[1738014615798,1.193901,101440.0,101430.0,0.00029715]
[1738014616121,1.41704365,101440.0,101430.0,0.00025715]
[1738014616329,1.54926765,101440.0,101430.0,0.00025715]
[1738014616534,1.75096765,101440.0,101430.0,0.00025715]
[1738014616943,1.95569783,101440.0,101430.0,0.00025715]
[1738014617143,1.95769783,101440.0,101430.0,0.00025715]
[1738014617555,1.94031283,101440.0,101430.0,0.00025715]
[1738014617757,1.82547383,101440.0,101430.0,0.00025715]
[1738014618257,1.93712383,101440.0,101430.0,0.00025715]
[1738014618543,1.82547383,101440.0,101430.0,0.00025715]
[1738014618751,1.88216996,101440.0,101430.0,0.00025715]
[1738014618961,0.292285,101430.0,101420.0,0.00029736]
[1738014619181,1.03956182,101430.0,101420.0,0.00029736]
[1738014619587,1.06470869,101430.0,101420.0,0.00029736]
[1738014619789,1.07470869,101430.0,101420.0,0.00029736]
[1738014619964,1.03956182,101430.0,101420.0,0.00029736]
[1738014620170,1.04056182,101430.0,101420.0,0.00029736]
[1738014620350,0.11,101420.0,101410.0,3.7e-07]
[1738014620567,0.90027265,101420.0,101410.0,3.7e-07]
[1738014620914,1.23977265,101420.0,101410.0,3.7e-07]
[1738014621572,1.24277265,101420.0,101410.0,3.7e-07]
[1738014621778,1.23977265,101420.0,101410.0,0.00049216]
[1738014622484,1.24077265,101420.0,101410.0,0.00049216]
[1738014623044,1.23977265,101420.0,101410.0,0.00049216]
[1738014623264,1.24077265,101420.0,101410.0,0.00049216]
[1738014623442,1.24377265,101420.0,101410.0,0.00049216]
[1738014623952,1.26357373,101420.0,101410.0,0.00049216]
[1738014624342,1.10185466,101420.0,101410.0,0.00049216]
[1738014624498,1.20185466,101420.0,101410.0,0.00049216]
[1738014624988,1.10185466,101420.0,101410.0,0.00049216]
[1738014625164,1.09885466,101420.0,101410.0,0.00049216]
[1738014625371,1.09785466,101420.0,101410.0,0.00049216]
[1738014625602,1.07854629,101420.0,101410.0,0.00049216]
[1738014625807,0.78124629,101420.0,101410.0,0.00049216]
[1738014626006,0.79440629,101420.0,101410.0,0.00049216]
[1738014626155,0.94440629,101420.0,101410.0,0.00049216]
[1738014626360,0.96740629,101420.0,101410.0,0.00049216]
[1738014626565,0.79475358,101420.0,101410.0,0.00049216]
[1738014626781,0.58124629,101420.0,101410.0,0.00049216]
[1738014626973,0.59440629,101420.0,101410.0,0.00049216]
[1738014627172,0.59740629,101420.0,101410.0,0.00049216]
[1738014627618,0.6070602,101420.0,101410.0,0.00049216]
[1738014628266,0.6060602,101420.0,101410.0,0.00049216]
[1738014628574,0.6040602,101420.0,101410.0,0.00049216]
[1738014628713,0.67079326,101420.0,101410.0,0.00049216]
[1738014629748,0.67379326,101420.0,101410.0,0.00049216]
[1738014631393,0.77379326,101420.0,101410.0,0.00049216]
[1738014631695,0.77379326,101420.0,101410.0,0.00941677]
[1738014632246,0.66413935,101420.0,101410.0,0.00941677]
[1738014632444,0.1495,101420.0,101410.0,0.31740058]
[1738014632674,0.004,101420.0,101410.0,0.39350058]
[1738014632835,0.004,101420.0,101410.0,0.56650058]
[1738014633478,0.003,101420.0,101410.0,0.56650058]
[1738014633814,0.50269004,101430.0,101420.0,0.14859668]
[1738014633982,0.50269004,101430.0,101420.0,0.26076649]
[1738014634192,0.50269004,101430.0,101420.0,0.14859668]
[1738014634371,0.50269004,101430.0,101420.0,0.22819668]
[1738014635374,0.50269004,101430.0,101420.0,0.23709474]
[1738014636264,0.50269004,101430.0,101420.0,0.23809474]
[1738014636677,0.50269004,101430.0,101420.0,0.35526455]
[1738014636894,0.50269004,101430.0,101420.0,0.35026455]
[1738014637116,0.50269004,101430.0,101420.0,0.35126455]
[1738014637326,0.50269004,101430.0,101420.0,0.52426455]
[1738014637764,0.50269004,101430.0,101420.0,0.67091184]
[1738014638429,0.50269004,101430.0,101420.0,0.57356455]
[1738014638631,0.50269004,101430.0,101420.0,0.28839474]
[1738014639263,0.50269004,101430.0,101420.0,0.42356455]
[1738014639441,0.50269004,101430.0,101420.0,0.57356455]
[1738014639680,0.50269004,101430.0,101420.0,0.43839474]
[1738014639895,0.83269503,101430.0,101420.0,0.15949474]
[1738014640751,0.74792233,101430.0,101420.0,0.01159574]
[1738014640963,0.74792233,101430.0,101420.0,0.01059574]
[1738014641381,0.74992233,101430.0,101420.0,0.01059574]
[1738014641593,0.74992233,101430.0,101420.0,0.00959574]
[1738014641820,0.92092233,101430.0,101420.0,0.00959574]
[1738014642037,1.06696962,101430.0,101420.0,0.00959574]
[1738014643722,1.24296962,101430.0,101420.0,0.00959574]
[1738014644062,1.24296962,101430.0,101420.0,0.00974864]
[1738014644877,1.24311122,101430.0,101420.0,0.00974864]
[1738014645408,1.19841122,101430.0,101420.0,0.00974864]
[1738014646269,1.21841122,101430.0,101420.0,0.00974864]
[1738014646472,1.19841122,101430.0,101420.0,0.00974864]
[1738014647034,1.21841122,101430.0,101420.0,0.00974864]
[1738014647438,1.19841122,101430.0,101420.0,0.00974864]
[1738014648207,1.19841122,101430.0,101420.0,0.15764764]
[1738014648208,0.76418393,101430.0,101420.0,0.15764764]
[1738014648418,0.60317893,101430.0,101420.0,0.15764764]
[1738014648615,0.60317893,101430.0,101420.0,0.15749474]
[1738014649565,0.60317893,101430.0,101420.0,0.15778226]
[1738014651079,0.75106393,101430.0,101420.0,0.15778226]
[1738014652795,0.76106393,101430.0,101420.0,0.15778226]
[1738014653013,0.76106393,101430.0,101420.0,0.00988326]
[1738014653485,0.86106393,101430.0,101420.0,0.00988326]
[1738014653699,1.16106983,101430.0,101420.0,0.00988326]
[1738014653957,1.18106983,101430.0,101420.0,0.00988326]
[1738014654182,1.16856983,101430.0,101420.0,0.00988326]
[1738014654419,1.15856983,101430.0,101420.0,0.00988326]
[1738014654651,1.23856983,101430.0,101420.0,0.0009852]
[1738014655113,1.23656983,101430.0,101420.0,0.0009852]
[1738014655355,1.23656983,101430.0,101420.0,0.01063352]
[1738014655586,1.00806393,101430.0,101420.0,0.01063352]
[1738014655756,0.85806393,101430.0,101420.0,0.01063352]
[1738014656021,0.85906393,101430.0,101420.0,0.01063352]
[1738014656370,0.85806393,101430.0,101420.0,0.01063352]
[1738014656559,0.85906393,101430.0,101420.0,0.01063352]
[1738014656961,0.86206393,101430.0,101420.0,0.01063352]
[1738014657162,0.75806393,101430.0,101420.0,0.15853252]
[1738014657598,0.76106393,101430.0,101420.0,0.15853252]
[1738014657947,0.76206393,101430.0,101420.0,0.15853252]
[1738014658688,0.51683164,101430.0,101420.0,0.15853252]
[1738014658889,0.51683164,101430.0,101420.0,0.40711952]
[1738014659077,0.51683164,101430.0,101420.0,0.23883252]
[1738014663872,0.83242734,101430.0,101420.0,0.15853252]
[1738014664113,0.3297373,101430.0,101420.0,0.15853252]
[1738014664325,0.10148889,101430.0,101420.0,0.15853252]
[1738014664707,0.24937389,101430.0,101420.0,0.15853252]
[1738014666959,0.10148889,101430.0,101420.0,0.15853252]
[1738014667319,0.24937389,101430.0,101420.0,0.15853252]
[1738014668487,0.10148889,101430.0,101420.0,0.15853252]
[1738014668967,0.0041416,101430.0,101420.0,0.15853252]
[1738014669604,0.0041416,101430.0,101420.0,0.44470316]
[1738014669808,0.0041416,101430.0,101420.0,0.5683172]
[1738014670642,0.0041416,101430.0,101420.0,0.23803252]
[1738014670847,0.24637389,101430.0,101420.0,0.01063352]
[1738014671067,0.32144598,101430.0,101420.0,0.01063352]
[1738014671314,0.24637389,101430.0,101420.0,0.01263352]
[1738014671558,0.24537389,101430.0,101420.0,0.01263352]
[1738014671810,0.24537389,101430.0,101420.0,0.01363352]
[1738014672305,0.24537389,101430.0,101420.0,0.01263352]
[1738014672558,0.24537389,101430.0,101420.0,0.01063352]
[1738014672787,0.24637389,101430.0,101420.0,0.01063352]
[1738014673072,0.24837389,101430.0,101420.0,0.01063352]
[1738014674343,0.24837389,101430.0,101420.0,0.15853252]
[1738014674920,0.24837389,101430.0,101420.0,0.01063352]
[1738014675144,0.34837389,101430.0,101420.0,0.01063352]
[1738014675553,0.44572118,101430.0,101420.0,0.01063352]
[1738014677640,0.77722118,101430.0,101420.0,0.01063352]
[1738014677840,0.79722118,101430.0,101420.0,0.01063352]
[1738014678408,0.58722118,101430.0,101420.0,0.01063352]
[1738014678614,0.62632118,101430.0,101420.0,0.01063352]
[1738014678818,0.86305338,101430.0,101420.0,0.0009852]
[1738014679019,0.54747389,101430.0,101420.0,0.0009852]
[1738014679278,0.24737389,101430.0,101420.0,0.0009852]
[1738014679416,0.49797389,101430.0,101420.0,0.009035]
[1738014679619,0.49897389,101430.0,101420.0,0.009035]
[1738014679826,0.62897389,101430.0,101420.0,0.009035]
[1738014680025,0.67632118,101430.0,101420.0,0.009035]
[1738014680308,0.24637389,101430.0,101420.0,0.009035]
[1738014681379,0.0001416,101430.0,101420.0,0.156934]
[1738014681587,0.0001416,101430.0,101420.0,0.55421946]
[1738014681792,0.0011416,101430.0,101420.0,0.57623358]
[1738014682002,0.0041416,101430.0,101420.0,0.57623358]
[1738014682197,0.0031416,101430.0,101420.0,0.57623358]
[1738014682412,0.0001416,101430.0,101420.0,0.407934]
[1738014682621,0.0041416,101430.0,101420.0,0.407934]
[1738014683722,0.0041416,101430.0,101420.0,0.42745495]
[1738014684137,0.0041416,101430.0,101420.0,0.384934]
[1738014684344,0.24937389,101430.0,101420.0,0.156934]
[1738014684998,0.24937389,101430.0,101420.0,0.009035]
[1738014685202,0.24670175,101430.0,101420.0,0.156934]
[1738014688183,0.41002065,101430.0,101420.0,0.009035]
[1738014689055,0.65512065,101430.0,101420.0,0.009035]
[1738014689261,0.66512065,101430.0,101420.0,0.009035]
[1738014689482,0.66512065,101430.0,101420.0,0.0009852]
[1738014690247,0.66526225,101430.0,101420.0,0.00903394]
[1738014690932,0.65059445,101430.0,101420.0,0.00903394]
[1738014691123,0.64359445,101430.0,101420.0,0.0009852]
[1738014691393,0.1,101390.0,101370.0,0.00029694]
[1738014691604,0.25830529,101380.0,101370.0,0.00029694]
[1738014691927,0.45830529,101380.0,101370.0,0.00029694]
[1738014692144,0.35830529,101380.0,101370.0,0.00029694]
[1738014692846,0.35835446,101380.0,101370.0,0.00229694]
[1738014693056,0.35835446,101380.0,101370.0,0.01048138]
[1738014693213,0.45570175,101380.0,101370.0,0.01048138]
[1738014693568,0.34535446,101380.0,101370.0,0.01048138]
[1738014693863,0.25835446,101380.0,101370.0,0.16045338]
[1738014694466,0.25835446,101380.0,101370.0,0.15845338]
[1738014694700,0.25935446,101380.0,101370.0,0.15645338]
[1738014694918,0.25935446,101380.0,101370.0,0.00848138]
[1738014695136,0.35670175,101380.0,101370.0,0.00848138]
[1738014695314,0.35570175,101380.0,101370.0,0.00848138]
[1738014696187,0.55770175,101380.0,101370.0,0.00848138]
[1738014696486,0.55570175,101380.0,101370.0,0.00848138]
[1738014696687,0.55670175,101380.0,101370.0,0.00848138]
[1738014696889,0.55570175,101380.0,101370.0,0.00848138]
[1738014697213,0.55770175,101380.0,101370.0,0.00848138]
[1738014697664,0.55870175,101380.0,101370.0,0.00848138]
[1738014698060,0.55670175,101380.0,101370.0,0.00848138]
[1738014698260,0.55570175,101380.0,101370.0,0.00848138]
[1738014698589,0.55670175,101380.0,101370.0,0.00848138]
[1738014699028,0.45670175,101380.0,101370.0,0.00848138]
[1738014699428,0.71100175,101380.0,101370.0,0.00848138]
[1738014699646,0.62870175,101380.0,101370.0,0.00848138]
[1738014700626,0.72870175,101380.0,101370.0,0.00848138]
[1738014703537,0.62870175,101380.0,101370.0,0.00848138]
[1738014704759,0.52870175,101380.0,101370.0,0.00848138]
[1738014705254,0.62870175,101380.0,101370.0,0.00848138]
[1738014705508,0.62866175,101380.0,101370.0,0.00848138]
[1738014705741,0.62866175,101380.0,101370.0,0.00029694]
[1738014705943,0.62866175,101380.0,101370.0,0.00850113]
[1738014706754,0.72866175,101380.0,101370.0,0.00850113]
[1738014707543,0.72866175,101380.0,101370.0,0.00029694]
[1738014707742,0.72866175,101380.0,101370.0,0.00850113]
[1738014710731,0.88416175,101380.0,101370.0,0.00850113]
[1738014710942,1.36672278,101380.0,101370.0,1.3e-07]
[1738014711160,0.16,101370.0,101360.0,0.00029715]
[1738014711369,1.16385662,101370.0,101360.0,0.00029715]
[1738014711572,1.52875662,101370.0,101360.0,0.00029715]
[1738014711808,1.75181765,101370.0,101360.0,0.00029715]
[1738014712012,1.78855608,101370.0,101360.0,0.00029715]
[1738014712431,2.01225608,101370.0,101360.0,0.00029715]
[1738014713275,2.01225608,101370.0,101340.0,0.00029652]
[1738014713276,0.01,101350.0,101340.0,1.9e-07]
[1738014713484,0.92237833,101350.0,101340.0,1.9e-07]
[1738014713693,1.09747853,101350.0,101340.0,1.9e-07]
[1738014713899,1.13047853,101350.0,101340.0,1.9e-07]
[1738014714103,1.12047853,101350.0,101340.0,1.9e-07]
[1738014714559,1.27047853,101350.0,101340.0,1.9e-07]
[1738014715620,1.27147853,101350.0,101340.0,1.9e-07]
[1738014716035,1.35397853,101350.0,101340.0,1.9e-07]
[1738014716654,1.45787853,101350.0,101340.0,1.9e-07]
[1738014716907,1.35397853,101350.0,101340.0,1.9e-07]
[1738014718556,1.37390624,101350.0,101340.0,1.9e-07]
[1738014718792,1.29600678,101350.0,101340.0,1.9e-07]
[1738014719064,1.33198273,101350.0,101340.0,1.9e-07]
[1738014719355,1.34714376,101350.0,101340.0,1.9e-07]
[1738014719820,1.32898273,101350.0,101340.0,1.9e-07]
[1738014720029,1.22848273,101350.0,101340.0,1.9e-07]
[1738014720234,1.23648273,101350.0,101340.0,1.9e-07]
[1738014720658,1.25848273,101350.0,101340.0,1.9e-07]
[1738014720881,1.24948273,101350.0,101340.0,0.00736023]
[1738014721165,1.28622116,101350.0,101340.0,1.9e-07]
[1738014721413,1.39338219,101350.0,101340.0,1.9e-07]
[1738014721688,1.39438219,101350.0,101340.0,1.9e-07]
[1738014721964,0.298031,101330.0,101320.0,0.00029715]
[1738014722214,1.13839773,101330.0,101320.0,0.00029715]
[1738014722457,1.52760541,101330.0,101320.0,0.0077104]
[1738014722732,1.65274384,101330.0,101320.0,0.0077104]
[1738014722977,0.40816063,101320.0,101310.0,0.0001415]
[1738014723218,0.83579135,101320.0,101310.0,0.0001415]
[1738014723460,0.93313864,101320.0,101310.0,0.00028895]
[1738014723699,0.68905292,101320.0,101310.0,0.00649595]
[1738014723948,0.64089229,101320.0,101310.0,0.00028895]
[1738014724215,0.65381229,101320.0,101310.0,0.00649727]
[1738014724449,0.67381229,101320.0,101310.0,0.00649727]
[1738014724712,0.72605006,101320.0,101310.0,0.00649727]
[1738014724958,0.72605006,101320.0,101310.0,0.15455727]
[1738014724959,0.25676729,101320.0,101310.0,0.15455727]
[1738014725210,0.24384729,101320.0,101310.0,0.15455727]
[1738014725444,0.09834729,101320.0,101310.0,0.28105727]
[1738014725714,0.001,101320.0,101310.0,0.28105727]
[1738014725959,0.001,101320.0,101310.0,0.43105727]
[1738014725960,0.002,101320.0,101310.0,0.43105727]
[1738014726433,0.89166548,101330.0,101320.0,0.148045]
[1738014726702,0.98901277,101330.0,101320.0,0.148045]
[1738014726928,0.98901277,101330.0,101320.0,0.00617871]
[1738014726929,1.24320033,101330.0,101320.0,0.00617871]
[1738014727916,0.84098177,101330.0,101320.0,0.15522371]
[1738014728154,0.84098177,101330.0,101320.0,0.15422371]
[1738014728602,0.59813448,101330.0,101320.0,0.25972371]
[1738014729129,0.59813448,101330.0,101320.0,0.40972371]
[1738014729949,0.59813448,101330.0,101320.0,0.45782371]
[1738014730161,0.59913448,101330.0,101320.0,0.45782371]
[1738014730382,0.59813448,101330.0,101320.0,0.45782371]
[1738014730596,0.59813448,101330.0,101320.0,0.555171]
[1738014730798,0.59813448,101330.0,101320.0,0.556171]
[1738014731001,0.59813448,101330.0,101320.0,0.555171]
[1738014731794,0.59813448,101330.0,101320.0,0.559171]
[1738014732060,0.59813448,101330.0,101320.0,0.560171]
[1738014733000,0.65794793,101330.0,101320.0,0.43982371]
[1738014733428,0.90332622,101330.0,101320.0,0.43982371]
[1738014733657,0.84351277,101330.0,101320.0,0.14177871]
[1738014733868,0.84351277,101330.0,101320.0,0.01117871]
[1738014734484,0.84351277,101330.0,101320.0,0.00617871]
[1738014734791,0.84351277,101330.0,101320.0,0.00717871]
[1738014735725,0.84351277,101330.0,101320.0,0.00732051]
[1738014736451,0.91560396,101330.0,101320.0,0.00732051]
[1738014736695,1.01560396,101330.0,101320.0,0.00732051]
[1738014736956,1.26560396,101330.0,101320.0,0.00732051]
[1738014738473,1.30790362,101330.0,101320.0,0.00732051]
[1738014738697,1.64411762,101330.0,101320.0,5.1e-07]
[1738014738922,1.39274205,101330.0,101320.0,5.1e-07]
[1738014739139,0.258045,101320.0,101310.0,0.00028895]
[1738014739364,0.88923958,101320.0,101310.0,0.00028895]
[1738014739583,0.248089,101290.0,101280.0,0.02529673]
[1738014739792,0.86104633,101290.0,101280.0,0.02578828]
[1738014740009,0.86104633,101290.0,101280.0,0.03129224]
[1738014740421,0.95839362,101290.0,101280.0,0.03129224]
[1738014740795,0.86104633,101290.0,101280.0,0.03129224]
[1738014740998,0.61295733,101290.0,101280.0,0.17939624]